Cogmind - Beta 14 X2 @@@ ROGUE MODE // 2024.08.04 @ 11:56:18 Player: f3-rnm Result: Destroyed by S-10 Pest with Light Assault Rifle Performance ------------- Evolutions (0) 0 Regions Visited (2) 400 Robots Destroyed (27) 135 Value Destroyed (800) 800 Prototype IDs (11) 220 Alien Tech Used (0) 0 Bonus (0) 0 TOTAL SCORE: 1555 Bonus ------- None Cogmind --------- Core Integrity 0/250 Matter 280/300 Energy 250/250 System Corruption 0% Temperature Cool (0) Movement Treading (160) Location -10/Subcaves Parts ------- > --- POWER (1) -------- Ion Engine > --- PROPULSION (2) --- Light Treads Light Treads > --- UTILITY (2) ------ Scrap Shield > --- WEAPON (2) ------- Subdweller Beam Cannon Battle Cannon > --- INVENTORY (5) ---- Light Ion Engine Scrap Shield Subdweller Beam Cannon Grenade Launcher Peak State ------------ > --- POWER ------------ Ion Engine > --- PROPULSION ------- Light Treads Light Treads > --- UTILITY ---------- Scrap Shield > --- WEAPON ----------- Subdweller Beam Cannon Battle Cannon > --- INVENTORY -------- Light Ion Engine Light Treads Power Bank Assault Rifle [Rating: 12] Favorites ----------- Power Ion Engine Engine Ion Engine Propulsion Light Treads Treads Light Treads Utility Visual Processing Unit Storage Medium Storage Unit Processor Visual Processing Unit Protection Scrap Shield Weapon Subdweller Beam Cannon Energy Cannon Subdweller Beam Cannon Ballistic Gun Assault Rifle Ballistic Cannon Battle Cannon Build | -11 -10 -10 ------- Run | Yrd Mat Sub Slots Evolved . | . . . Power . | . . . Propulsion . | . . . Utility . | . . . Weapon . | . . . Parts Attached 18 | 6 5 7 Power 3 | 1 2 . Engine 3 | 1 2 . Core . | . . . Reactor . | . . . Propulsion 4 | 2 . 2 Treads 4 | 2 . 2 Leg . | . . . Wheel . | . . . Hover . | . . . Flight . | . . . Utility 4 | 1 2 1 Device . | . . . Storage 2 | 1 1 . Processor 1 | . 1 . Hackware . | . . . Protection 1 | . . 1 Artifact . | . . . Weapon 7 | 2 1 4 Energy Gun . | . . . Energy Cannon 2 | . . 2 Ballistic Gun 4 | 2 1 1 Ballistic Cannon 1 | . . 1 Launcher . | . . . Special Weapon . | . . . Impact Weapon . | . . . Slashing Weapon . | . . . Piercing Weapon . | . . . Special Melee Weapon . | . . . Unidentified Prototypes . | . . . Parts Lost 4 | . 3 1 Power 2 | . 2 . Propulsion 1 | . . 1 Utility . | . . . Weapon 1 | . 1 . Highest Loss Streak 1 | . 1 1 To Critical Strikes . | . . . Average Slot Usage (%) 92 | . 96 91 Engine 13 | . 13 14 Treads 27 | . 28 27 Storage 8 | . 14 5 Processor 7 | . 11 5 Protection 5 | . . 7 Energy Cannon 10 | . . 13 Ballistic Gun 10 | . 27 4 Ballistic Cannon 7 | . . 9 Naked Turns . | . . . Heaviest Build 34 | 13 18 34 Greatest Support 40 | 40 40 40 Greatest Overweight (x) . | . . . Average Overweight (x) . | . . . Largest Inventory Capacity 10 | 8 10 10 Average Capacity 7 | 7 9 7 Most Carried 10 | 2 9 10 Average Carried 6 | 1 5 7 Final Capacity 10 | 8 10 5 Final Carried 9 | 2 9 5 Class Distribution -------------------- 78% | Scavenger-Mutant 21% | Mutant Dominant Class ---------------- Mutant | -10/Materials Scavenger-Mutant | -10/Subcaves Resources | -11 -10 -10 ----------- Run | Yrd Mat Sub Matter Collected 802 | 170 332 300 Remotely . | . . . Salvage Created 842 | . 387 455 Parts 57 | . 23 34 Haulers Intercepted 1 | . 1 . Recyclers Shooed . | . . . Parts Field Recycled . | . . . Retrieved Matter . | . . . Parts Self-Destructed 7 | . . 7 Prevented . | . . . Kills | -11 -10 -10 ------- Run | Yrd Mat Sub Combat Hostiles Destroyed 23 | . 9 14 Guns 12 | . 9 3 Cannons 11 | . . 11 Classes Destroyed 7 | . 5 2 Worker 1 | . 1 . Hauler 1 | . 1 . Watcher 2 | . 2 . Swarmer 5 | . 3 2 Grunt 6 | . 6 . Sentry 1 | . . 1 Subdweller 11 | . . 11 Best Kill Streak 3 | . 3 2 Combat Bots Only 3 | . 3 2 Max Kills in Single Turn 1 | . 1 1 Gunslinging . | . . . Exploded . | . . . Melee . | . . . Uniques/NPCs Destroyed . | . . . Combat | -11 -10 -10 -------- Run | Yrd Mat Sub Hostile Shots Fired 111 | . 62 49 Missed 36 | . 19 17 Damage Taken 1136 | . 521 615 Core 253 | . 62 191 Absorbed by Shields . | . . . Core Remaining (%) 100 | 100 . . Volleys Fired 110 | . 52 58 Largest 2 | . 2 2 Hottest 119 | . 40 119 Shots Fired 216 | . 103 113 Gun 137 | . 103 34 Cannon 79 | . . 79 Launcher . | . . . Special . | . . . Kinetic 172 | . 103 69 Thermal 44 | . . 44 Explosive . | . . . Electromagnetic . | . . . Robot Hit Streak 16 | . 8 16 Robot Miss Streak 4 | . 4 3 Penetration Max . | . . . Secondary Targets 5 | . 4 1 Max Gunslinging Chain 1 | . 1 1 Shots Hit Robots 123 | . 67 56 Core Hits 45 | . 23 22 Critical Kills . | . . . Critical Parts Destroyed . | . . . Critical Strikes 3 | . . 3 Blast 3 | . . 3 Melee Attacks . | . . . Impact . | . . . Slashing . | . . . Piercing . | . . . Sneak Attacks . | . . . Combat Hostiles . | . . . Follow-up Attacks . | . . . Damage Inflicted 1729 | . 680 1049 Guns 891 | . 680 211 Cannons 838 | . . 838 Explosions . | . . . Melee . | . . . Ramming . | . . . Kinetic 1214 | . 680 534 Thermal 515 | . . 515 Explosive . | . . . Electromagnetic . | . . . Impact . | . . . Slashing . | . . . Piercing . | . . . Highest Corruption . | . . . Average Corruption . | . . . Corruption Purged . | . . . Corruption Blocked . | . . . Overload Shots . | . . . Overflow Damage . | . . . Projectiles . | . . . Explosions . | . . . Melee . | . . . Knockbacks 2 | . . 2 Impact . | . . . Kinetic 2 | . . 2 Secondary . | . . . Self-Inflicted Damage . | . . . Shots . | . . . Rammed . | . . . Targets Rammed . | . . . Kicked . | . . . Crushed . | . . . Highest Temperature 15 | . 15 13 Average Temperature 5 | . 6 5 Received Heat Transfer 381 | . 219 162 Siege Activations . | . . . Robots Corrupted . | . . . Combat Hostiles . | . . . Parts Fried . | . . . Impact Corruptions . | . . . Robots Melted . | . . . Combat Hostiles . | . . . Parts Melted 1 | . . 1 Heat Transferred 703 | . . 703 Parts Sabotaged . | . . . Parts Stolen . | . . . Parts Stripped . | . . . Power Chain Reactions . | . . . Alert | -11 -10 -10 ------- Run | Yrd Mat Sub Peak Influence 223 | . 223 . Initial . | . . . Average 66 | . 72 . Maximum Alert Level 1 | . 1 . Low Security (%) 91 | 100 90 . Level 1 8 | . 9 . Level 2 . | . . . Level 3 . | . . . Level 4 . | . . . Level 5 . | . . . High Security . | . . . Max Security . | . . . Squads Dispatched . | . . . Investigation . | . . . Extermination . | . . . Reinforcement . | . . . Assault . | . . . Garrison . | . . . Intercept . | . . . Searches Triggered . | . . . Construction Impeded . | . . . Haulers Reinforced . | . . . Active Scanning Responses . | . . . Cargo Convoy Interrupts . | . . . Stealth | -11 -10 -10 --------- Run | Yrd Mat Sub Distress Signals 2 | . 2 . Communications Jammed . | . . . Distress Signals . | . . . Times Spotted 34 | . 16 18 Peak Tracking Total 4 | . 4 4 Tactical Retreats 4 | . 2 2 Traps | -11 -10 -10 ------- Run | Yrd Mat Sub Traps Triggered 1 | . 1 . Indirectly . | . . . Trap Hack Attempts . | . . . Triggered . | . . . Disarmed . | . . . Reprogrammed . | . . . Reused . | . . . Traps Extracted . | . . . Installed . | . . . Triggered . | . . . Machines | -11 -10 -10 ---------- Run | Yrd Mat Sub Machines Disabled 1 | . . 1 Max in Single Turn 1 | . . 1 Machines Repaired . | . . . Machines Dismantled . | . . . Machines Sabotaged . | . . . Overloaded Fab Kills . | . . . Hacking | -11 -10 -10 --------- Run | Yrd Mat Sub Machines Accessed 6 | . 5 1 Terminals 5 | . 5 . Fabricators . | . . . Repair Stations . | . . . Recycling Units . | . . . Scanalyzers . | . . . Garrison Access . | . . . Total Hacks 9 | . 8 1 Successful 6 | . 5 1 Failed 3 | . 3 . Catastrophic . | . . . Database Lockouts . | . . . Manual 8 | . 8 . Terminals 8 | . 8 . Fabricators . | . . . Repair Stations . | . . . Recycling Units . | . . . Scanalyzers . | . . . Garrison Access . | . . . Terminal Hacks 1 | . . 1 Derelict Proto ID Bank 1 | . . 1 Fabricator Hacks . | . . . Repair Station Hacks . | . . . Recycling Unit Hacks . | . . . Scanalyzer . | . . . Garrison Access Hacks . | . . . Unauthorized Hacks 5 | . 5 . Terminals 5 | . 5 . Skim 5 | . 5 . Fabricators . | . . . Repair Stations . | . . . Recycling Units . | . . . Scanalyzers . | . . . Garrison Access . | . . . Data Cores Recovered . | . . . Used . | . . . Hacking Detections 3 | . 3 . Full Trace Events . | . . . Feedback Events . | . . . Feedback Blocked . | . . . Robot Schematics Acquired . | . . . Robots Built . | . . . Authchips . | . . . Time . | . . . Total Robot Build Rating . | . . . Part Schematics Acquired . | . . . Parts Built . | . . . Authchips . | . . . Time . | . . . Total Part Build Rating . | . . . Parts Repaired . | . . . Time . | . . . Parts Recycled . | . . . Recycled Matter . | . . . Retrieved Matter . | . . . Retrieved Components . | . . . Parts Scanalyzed . | . . . Part Schematics Acquired . | . . . Parts Damaged . | . . . Bothacking | -11 -10 -10 ------------ Run | Yrd Mat Sub Used RIF Installer . | . . . Robots Hacked . | . . . Non-combat . | . . . Combat . | . . . Robot Hacks Applied . | . . . Relay Couplers Released . | . . . Fabnet Peak Effective % . | . . . Robots Rewired . | . . . Allies Hacked . | . . . Hacks Repelled . | . . . Allies | -11 -10 -10 -------- Run | Yrd Mat Sub Total Allies . | . . . Largest Group . | . . . Highest-Rated Group . | . . . Highest-Rated Ally . | . . . Total Orders . | . . . Ally Attacks . | . . . Total Damage . | . . . Kills . | . . . Allies Corrupted . | . . . Allies Melted . | . . . Intel | -11 -10 -10 ------- Run | Yrd Mat Sub Robot Analysis Total . | . . . Derelict Logs Recovered 2 | . . 2 Drone Launches . | . . . Drone Recoveries . | . . . Exploration | -11 -10 -10 ------------- Run | Yrd Mat Sub Turns Passed 3519 | 72 919 2528 Spaces Moved 1855 | 40 367 1448 Core 2 | 2 . . Treads 1853 | 38 367 1448 Legs . | . . . Wheels . | . . . Hover . | . . . Flight . | . . . Fastest Speed 50 | 50 160 160 Average Speed 159 | 154 160 160 Slowest Speed 160 | 160 160 160 Overloaded Moves . | . . . Propulsion Burnouts . | . . . Robots Hopped . | . . . Cave-ins Triggered . | . . . Exploration Rate (%) 40 | 3 44 74 Regions Visited 2 Branch Regions 1 Pre-discovered Areas 2 | . 1 1 Known Exits Taken . | . . . Unknown Exits Taken 2 | 1 1 . Scrap Searched 10 | . . 10 Spaces Dug 4 | . . 4 Terrain Destroyed 8 | . . 8 Melee . | . . . Projectile 8 | . . 8 AOE . | . . . Terrain Rammed . | . . . Walls Destroyed . | . . . Machines Disabled . | . . . Actions | -11 -10 -10 --------- Run | Yrd Mat Sub Total 2202 | 47 605 1550 Wait 187 | . 173 14 Move 1853 | 39 366 1448 Hop . | . . . Pick Up 17 | 2 8 7 Fast Attach 10 | 6 3 1 Attach 2 | . 1 1 Detach . | . . . Swap 6 | . 1 5 Drop 10 | . 1 9 Fire 110 | . 52 58 Melee . | . . . Ram . | . . . Kick . | . . . Crush . | . . . Escape Stasis . | . . . Rewire . | . . . Trap . | . . . Miscellaneous 7 | . . 7 Route ------- -11/Scrapyard -10/Materials (discovered 5 exits: *Mat x3 / [*Min] / *Sub) -10/Subcaves (discovered 1 exit: [*Mat]) History --------- Turn | Location | Event 9 | -11/Scrapyard | Discovered new exit (range 14) 73 | -11/Scrapyard | Entered Materials 169 | -10/Materials | Discovered new exit (range 8) 318 | -10/Materials | Build established: Mutant 410 | -10/Materials | Discovered new exit (range 18) 724 | -10/Materials | Identified exit to Materials 799 | -10/Materials | Learned location of Mines (-9) 818 | -10/Materials | Discovered new exit (range 7) 866 | -10/Materials | Learned Storage stockpile data 922 | -10/Materials | Learned Storage trap positions 970 | -10/Materials | Learned location of 2 exits from Mines 992 | -10/Materials | Entered Subcaves 1012 | -10/Subcaves | Core integrity fell below 50% 1046 | -10/Subcaves | Build established: Scavenger-Mutant 1185 | -10/Subcaves | Shifting Twisted Machinery released Flamer 1343 | -10/Subcaves | Visited 4L-MR0's lab 1360 | -10/Subcaves | Found Power Bank 1604 | -10/Subcaves | Core integrity fell below 20% 1651 | -10/Subcaves | Learned 4 Materials zone layouts 2581 | -10/Subcaves | A swath of the cavern ceiling suddenly collapsed 2600 | -10/Subcaves | A swath of the cavern ceiling suddenly collapsed 2658 | -10/Subcaves | Discovered new exit (range 15) 3113 | -10/Subcaves | Shifting Twisted Machinery released Mak. System Restoration Module 3374 | -10/Subcaves | Shifting Twisted Machinery released Mak. Leg 3520 | -10/Subcaves | Destroyed by S-10 Pest with Light Assault Rifle Last Messages --------------- 02725_ TX-C7V(R) destroyed. 02732_ Acquired 47 matter. 02739_ Scrap Shield Fragment affixed to Scrap Shield (+19). 02755_ TO-W94(R) destroyed. 02770_ Acquired 34 matter. 02912_ HN-PET(u) builds Twisted Machinery. 02949_ 2W-TWP(R) destroyed. 02951_ I5-O1Z(O) collects matter. 02961_ Acquired 14 matter. 02965_ Scrap Shield Fragment affixed to Scrap Shield (+46). 02967_ Scrap Shield Fragment affixed to Scrap Shield (+1). 02970_ Dropped Sub. Beam Cannon. Mak. System Restoration Module falls loose from the Twisted Machinery. 03151_ YH-TAJ(R) destroyed. 03154_ ZJ-I7K(R) destroyed. 03165_ Scrap Shield Fragment affixed to Scrap Shield (+20). 03167_ Acquired 35 matter. Mak. Leg falls loose from the Twisted Machinery. 03514_ S-10 Pest destroyed. 03518_ Lgt. Assault Rifle fries itself beyond repair. Map ----- +----------------------------------------------------+ | ?????????????????????????????????????????????????? | | ?????????????????????????????????????????????????? | | ?????????????????????????????????????????????????? | | ?????????????????????????????????????????????????? | | ?????????????????????????????????????????????????? | | ?????????????????????????????????????????????????? | | ?????????????????????????????????????????????????? | | ?????????????????????????????????????????????????? | | ?????????????????????????????????????????????????? | | ?????????????????????????????????????????????????? | | ????????????????????????##???????????????????????? | | ???????????????????????? ???????????????????????? | | ??????????????????????? ???????????????????????? | | ?????????????????????? ???????????????????????? | | ????????????????????? ???????### ????????????? | | ?????????????????????? ##?#### ?????????????? | | ??????????????????????# ## ??????????????? | | ??????????????????????? ## #??????????????? | | ???????????????????????? ## #???????????????? | | ???????????????######???# # ##???????###???## | | ????????????#### ??# # ###?????# ##### | | ???????????## ### ## ##????# | | ??????????? ##??## | | ???????????? ##?# | | ?????????????????# ### | | ???????????????????# @ ## | | ???????????????????## s% | | ????????????????????# s&### | | ????????????????????# *%??##%=##### ###### | | ????????????????????# [????# #???## #?#### | | ????????????????????# ???? ##????# ##?# | | ???????????????????? ???? !*##?????# #?# ## | | ??????????????????? ?? &%&???????####?#### ### | | ??????????????????# ?? !&#???????????????#####?# | | ??????????????????#?? ??????????????????????# | | ????????????????????# ??????????????????????? | | ????????????????????# ??????????????????????? | | ????????????????????### ???????????????????????? | | ??????????????????????# ???????????????????????? | | ??????????????????????? ???????????????????????? | | ?????????????????????? ????????????????????????? | | ?????????????????????? ????????????????????????? | | ???????????????????????? ????????????????????????? | | ?????????????????????????????????????????????????? | | ?????????????????????????????????????????????????? | | ?????????????????????????????????????????????????? | | ?????????????????????????????????????????????????? | | ?????????????????????????????????????????????????? | | ?????????????????????????????????????????????????? | | ???????????????????????????????????????###???????? | +----------------------------------------------------+ Best States ------------- Heat Dissipation 25 Energy Generation 10 Energy Capacity 250 Matter Stores 300 Matter Capacity 300 Sight Range 18 Terrain Scan Density 10 Armor Coverage 800 Evasion (%) 40 Recoil Reduction 2 Item Schematics ----------------- None Robot Schematics ------------------ None Fabricated ------------ Nothing Alien Tech Used ----------------- None Achievements -------------- None Challenges ------------ None Game ------ Seed SniperPhysicsFilter Manual? 0 Play Time 00:13:45 Cumulative 220.5 hours Start 2024.08.04 @ 11:45:53 End 2024.08.04 @ 11:56:18 Sessions 1 Manual Loads 0 Difficulty Rogue Special Mode None Game No. 228 Rogue 192 Adventurer 36 Explorer 0 Win Type - Total 10 Types 3/0/7/0/0/0/0/0/0 Lore% 58 Gallery% 80 Achievement% 71 Wizard Run 0 Options --------- Layout 0 ASCII 0 Keyboard 0 Movement Mouse Keybinds 0 Fullscreen 1 Font 18/SmallcapsGlow Map View 76x50 Zoom Use 0% Tactical HUD 1 Map Filters NONE Filters NONE Steam 1 RUN: f8553e14-d44e-436f-9764-a6fb4a05662a